[Event "*** Titled Tuesday Blitz"]
[Site "Chess.com"]
[Date "2019.06.04"]
[Round "2"]
[White "ENEASZ"]
[Black "biostatistician"]
[Result "1-0"]
[WhiteElo "2516"]
[BlackElo "2541"]
[TimeControl "180+2"]
[EndTime "13:20:12 PDT"]
[Termination "ENEASZ won by resignation"]

1. e4 {[%clk 0:03:01.9]} 1... e6 {[%clk 0:03:00.7]} 2. d4 {[%clk 0:03:02.5]}
2... d5 {[%clk 0:03:02]} 3. Bd3 {[%clk 0:03:03.8]} 3... dxe4 {[%clk 0:03:02.9]}
4. Bxe4 {[%clk 0:03:05.7]} 4... Nf6 {[%clk 0:03:04.3]} 5. Bf3 {[%clk 0:03:07.3]}
5... Nbd7 {[%clk 0:03:05.6]} 6. Nc3 {[%clk 0:02:48]} 6... Bb4 {[%clk 0:03:06.5]}
7. a3 {[%clk 0:02:46]} 7... Bxc3+ {[%clk 0:03:07.3]} 8. bxc3 {[%clk 0:02:47.9]}
8... e5 {[%clk 0:03:07.3]} 9. dxe5 {[%clk 0:02:40.7]} 9... Nxe5 {[%clk
0:03:09.2]} 10. Qxd8+ {[%clk 0:02:41.2]} 10... Kxd8 {[%clk 0:03:11.1]} 11. Be2
{[%clk 0:02:42.4]} 11... Bf5 {[%clk 0:03:12.2]} 12. Bf4 {[%clk 0:02:40.5]} 12...
Ng6 {[%clk 0:03:11.3]} 13. O-O-O+ {[%clk 0:02:39]} 13... Kc8 {[%clk 0:03:12.5]}
14. Bg3 {[%clk 0:02:27]} 14... Ne4 {[%clk 0:03:13.2]} 15. Bd3 {[%clk 0:02:28.2]}
15... Ne7 {[%clk 0:03:00.4]} 16. Nf3 {[%clk 0:02:24.8]} 16... Nxc3 {[%clk
0:02:54.6]} 17. Rde1 {[%clk 0:01:58.4]} 17... Be6 {[%clk 0:02:54.3]} 18. Ng5
{[%clk 0:01:48.6]} 18... Nf5 {[%clk 0:02:45.7]} 19. Bxf5 {[%clk 0:01:26.9]}
19... Bxf5 {[%clk 0:02:45.5]} 20. Re7 {[%clk 0:01:28.8]} 20... Nd5 {[%clk
0:02:41.2]} 21. Rxf7 {[%clk 0:01:29.8]} 21... Bg6 {[%clk 0:02:37]} 22. Rxg7
{[%clk 0:01:30.4]} 22... b5 {[%clk 0:02:27.4]} 23. Rd1 {[%clk 0:01:13.8]} 23...
c6 {[%clk 0:02:05]} 24. Rxd5 {[%clk 0:01:13]} 24... cxd5 {[%clk 0:02:06.2]} 25.
Rc7+ {[%clk 0:01:13.8]} 25... Kd8 {[%clk 0:02:07.7]} 26. Ne6+ {[%clk 0:01:14.9]}
26... Ke8 {[%clk 0:02:09]} 27. Bh4 {[%clk 0:01:15.9]} 1-0

[Event "*** Titled Tuesday Blitz"]
[Site "Chess.com"]
[Date "2019.06.04"]
[Round "2"]
[White "severomorskij"]
[Black "Thjop"]
[Result "1-0"]
[WhiteElo "2775"]
[BlackElo "2577"]
[TimeControl "180+2"]
[EndTime "13:20:13 PDT"]
[Termination "severomorskij won by resignation"]

1. d4 {[%clk 0:03:00.8]} 1... Nf6 {[%clk 0:02:59.3]} 2. Bg5 {[%clk 0:03:01.6]}
2... e6 {[%clk 0:02:58]} 3. e4 {[%clk 0:03:01.8]} 3... h6 {[%clk 0:02:58.1]} 4.
Bxf6 {[%clk 0:03:02.8]} 4... Qxf6 {[%clk 0:03:00]} 5. c3 {[%clk 0:03:04.3]} 5...
d5 {[%clk 0:02:39.7]} 6. Bd3 {[%clk 0:03:03]} 6... c5 {[%clk 0:02:38.2]} 7. Nf3
{[%clk 0:03:03.5]} 7... Nc6 {[%clk 0:02:32.4]} 8. O-O {[%clk 0:03:01.6]} 8...
dxe4 {[%clk 0:02:25.1]} 9. Bxe4 {[%clk 0:03:01.7]} 9... Bd7 {[%clk 0:02:10.6]}
10. Na3 {[%clk 0:02:35.1]} 10... cxd4 {[%clk 0:01:50.8]} 11. Nb5 {[%clk
0:02:34.9]} 11... Qf4 {[%clk 0:01:48.9]} 12. Nfxd4 {[%clk 0:02:02.6]} 12... Qxe4
{[%clk 0:00:52.8]} 13. Nc7+ {[%clk 0:02:01.1]} 13... Kd8 {[%clk 0:00:53.8]} 14.
Re1 {[%clk 0:01:54.6]} 14... Qf4 {[%clk 0:00:41.1]} 15. Ndxe6+ {[%clk
0:01:52.6]} 15... fxe6 {[%clk 0:00:38.8]} 16. Nxe6+ {[%clk 0:01:53.5]} 1-0

[Event "*** Titled Tuesday Blitz"]
[Site "Chess.com"]
[Date "2019.06.04"]
[Round "2"]
[White "FairChess_on_YouTube"]
[Black "dusanacns"]
[Result "1-0"]
[WhiteElo "3068"]
[BlackElo "2647"]
[TimeControl "180+2"]
[EndTime "13:20:58 PDT"]
[Termination "FairChess_on_YouTube won by resignation"]

1. d4 {[%clk 0:03:01.9]} 1... Nf6 {[%clk 0:03:00.4]} 2. c4 {[%clk 0:03:02.8]}
2... g6 {[%clk 0:03:01.7]} 3. Nc3 {[%clk 0:03:03.8]} 3... Bg7 {[%clk 0:03:03.4]}
4. e4 {[%clk 0:03:04.3]} 4... O-O {[%clk 0:03:04.9]} 5. h3 {[%clk 0:03:05]} 5...
c6 {[%clk 0:03:05.6]} 6. Nf3 {[%clk 0:03:03]} 6... d5 {[%clk 0:03:06.6]} 7. cxd5
{[%clk 0:03:04.1]} 7... cxd5 {[%clk 0:03:08.5]} 8. e5 {[%clk 0:03:05.3]} 8...
Ne4 {[%clk 0:03:10.1]} 9. Bd3 {[%clk 0:03:06.8]} 9... Nxc3 {[%clk 0:03:10.9]}
10. bxc3 {[%clk 0:03:08.7]} 10... Nc6 {[%clk 0:03:12.5]} 11. O-O {[%clk
0:03:08.6]} 11... b6 {[%clk 0:03:13.9]} 12. Bg5 {[%clk 0:02:56.5]} 12... f6
{[%clk 0:02:52.2]} 13. exf6 {[%clk 0:02:55.8]} 13... exf6 {[%clk 0:02:54.1]} 14.
Bf4 {[%clk 0:02:56.6]} 14... Be6 {[%clk 0:02:52.6]} 15. Re1 {[%clk 0:02:52.2]}
15... Qd7 {[%clk 0:02:49.8]} 16. Qa4 {[%clk 0:02:45.1]} 16... Ne5 {[%clk
0:02:08.8]} 17. Qxd7 {[%clk 0:02:44.8]} 17... Nxf3+ {[%clk 0:02:09.4]} 18. gxf3
{[%clk 0:02:46.7]} 18... Bxd7 {[%clk 0:02:11]} 19. c4 {[%clk 0:02:47.9]} 19...
Bxh3 {[%clk 0:01:56.4]} 20. cxd5 {[%clk 0:02:47.1]} 20... Rfe8 {[%clk 0:01:48]}
21. Bb5 {[%clk 0:02:41.8]} 21... Rxe1+ {[%clk 0:01:34.4]} 22. Rxe1 {[%clk
0:02:43.7]} 22... Bf8 {[%clk 0:01:32.4]} 23. Bc7 {[%clk 0:02:15.5]} 23... Kg7
{[%clk 0:01:01]} 24. d6 {[%clk 0:02:09.1]} 24... a6 {[%clk 0:00:56.3]} 25. Bc6
{[%clk 0:01:37.4]} 25... Rc8 {[%clk 0:00:50.9]} 26. Bb7 {[%clk 0:01:33.7]} 1-0

[Event "*** Titled Tuesday Blitz"]
[Site "Chess.com"]
[Date "2019.06.04"]
[Round "2"]
[White "Meharchinnareddy"]
[Black "lachesisQ"]
[Result "0-1"]
[WhiteElo "2637"]
[BlackElo "3080"]
[TimeControl "180+2"]
[EndTime "13:21:08 PDT"]
[Termination "lachesisQ won by resignation"]

1. e4 {[%clk 0:03:01.9]} 1... c5 {[%clk 0:02:59]} 2. Nf3 {[%clk 0:03:02.8]} 2...
d6 {[%clk 0:03:00.1]} 3. d4 {[%clk 0:03:03.9]} 3... cxd4 {[%clk 0:03:02]} 4.
Qxd4 {[%clk 0:03:05.5]} 4... Nf6 {[%clk 0:03:00.5]} 5. c4 {[%clk 0:03:05.3]}
5... Nc6 {[%clk 0:03:00.6]} 6. Qe3 {[%clk 0:03:06.4]} 6... Bg4 {[%clk
0:02:57.2]} 7. Be2 {[%clk 0:03:07.2]} 7... g6 {[%clk 0:02:55.9]} 8. O-O {[%clk
0:03:08.2]} 8... Bg7 {[%clk 0:02:57]} 9. Nc3 {[%clk 0:03:09.8]} 9... O-O {[%clk
0:02:57.9]} 10. Rd1 {[%clk 0:03:11.4]} 10... Rc8 {[%clk 0:02:58.2]} 11. e5
{[%clk 0:03:06.5]} 11... Nd7 {[%clk 0:02:35.1]} 12. exd6 {[%clk 0:03:05.2]}
12... exd6 {[%clk 0:02:37]} 13. h3 {[%clk 0:02:51.6]} 13... Re8 {[%clk
0:02:37.4]} 14. Qd2 {[%clk 0:02:52.9]} 14... Bxf3 {[%clk 0:02:24.9]} 15. Bxf3
{[%clk 0:02:54.8]} 15... Nd4 {[%clk 0:02:25.9]} 16. Bxb7 {[%clk 0:02:52.7]}
16... Rxc4 {[%clk 0:02:26]} 17. Bd5 {[%clk 0:02:53.2]} 17... Rc5 {[%clk
0:02:15.4]} 18. Bb3 {[%clk 0:02:42.6]} 18... Qa5 {[%clk 0:02:02.8]} 19. Ba4
{[%clk 0:02:22.7]} 19... Re7 {[%clk 0:01:27.8]} 20. Bxd7 {[%clk 0:02:22.4]}
20... Rxd7 {[%clk 0:01:26.9]} 21. Ne4 {[%clk 0:02:17.2]} 21... Qxd2 {[%clk
0:01:18.5]} 22. Bxd2 {[%clk 0:02:19.1]} 22... Rc2 {[%clk 0:01:19.5]} 23. Be3
{[%clk 0:02:07.7]} 23... Nf5 {[%clk 0:01:16]} 24. Bg5 {[%clk 0:02:03.2]} 24...
Bxb2 {[%clk 0:01:02.9]} 25. Rab1 {[%clk 0:02:03.7]} 25... h6 {[%clk 0:00:48.4]}
26. Bf6 {[%clk 0:01:56.9]} 26... Rb7 {[%clk 0:00:49.3]} 27. Nxd6 {[%clk
0:01:51]} 27... Nxd6 {[%clk 0:00:50.1]} 28. Rxd6 {[%clk 0:01:52.9]} 28... Bxf6
{[%clk 0:00:51.2]} 29. Rxb7 {[%clk 0:01:53.1]} 29... Rc1+ {[%clk 0:00:52.5]} 30.
Kh2 {[%clk 0:01:52.4]} 30... Be5+ {[%clk 0:00:53.7]} 31. g3 {[%clk 0:01:54]}
31... Bxd6 {[%clk 0:00:55]} 32. Rxa7 {[%clk 0:01:55.3]} 32... Rc2 {[%clk
0:00:56.4]} 33. Kg2 {[%clk 0:01:56.1]} 33... Rxf2+ {[%clk 0:00:57]} 34. Kxf2
{[%clk 0:01:58]} 34... Bc5+ {[%clk 0:00:58.1]} 35. Kf3 {[%clk 0:01:59.9]} 35...
Bxa7 {[%clk 0:01:00]} 0-1

[Event "*** Titled Tuesday Blitz"]
[Site "Chess.com"]
[Date "2019.06.04"]
[Round "2"]
[White "cool4chess"]
[Black "TBergh98"]
[Result "0-1"]
[WhiteElo "2343"]
[BlackElo "2424"]
[TimeControl "180+2"]
[EndTime "13:21:14 PDT"]
[Termination "TBergh98 won by resignation"]

1. e4 {[%clk 0:03:01.9]} 1... Nf6 {[%clk 0:02:59.8]} 2. e5 {[%clk 0:03:02.4]}
2... Nd5 {[%clk 0:03:00.5]} 3. d4 {[%clk 0:03:03.5]} 3... d6 {[%clk 0:03:00]} 4.
c4 {[%clk 0:03:05.1]} 4... Nb6 {[%clk 0:03:00.6]} 5. exd6 {[%clk 0:03:06.4]}
5... exd6 {[%clk 0:03:02.5]} 6. Nc3 {[%clk 0:03:07.7]} 6... Be7 {[%clk
0:03:03.7]} 7. Nf3 {[%clk 0:03:07.9]} 7... Nc6 {[%clk 0:03:05]} 8. Be2 {[%clk
0:03:08.4]} 8... Bg4 {[%clk 0:03:05.7]} 9. O-O {[%clk 0:03:09.3]} 9... O-O
{[%clk 0:03:06.5]} 10. h3 {[%clk 0:03:10.6]} 10... Bh5 {[%clk 0:03:07.3]} 11.
Be3 {[%clk 0:03:10.8]} 11... d5 {[%clk 0:03:05.4]} 12. c5 {[%clk 0:03:11.1]}
12... Nc8 {[%clk 0:03:06.1]} 13. b4 {[%clk 0:03:03.5]} 13... a6 {[%clk
0:03:06.5]} 14. a3 {[%clk 0:03:02.5]} 14... Bf6 {[%clk 0:03:06.7]} 15. Qb3
{[%clk 0:02:49.1]} 15... Bxf3 {[%clk 0:03:05.4]} 16. Bxf3 {[%clk 0:02:50.5]}
16... Nxd4 {[%clk 0:03:06.2]} 17. Bxd4 {[%clk 0:02:50.6]} 17... Bxd4 {[%clk
0:03:06.8]} 18. Rad1 {[%clk 0:02:05.2]} 18... Bxc3 {[%clk 0:03:05.6]} 19. Qxc3
{[%clk 0:01:55]} 19... c6 {[%clk 0:03:05.7]} 20. a4 {[%clk 0:01:54.7]} 20... Ne7
{[%clk 0:03:06.1]} 21. Rfe1 {[%clk 0:01:54.6]} 21... Ng6 {[%clk 0:03:07.2]} 22.
b5 {[%clk 0:01:54.2]} 22... axb5 {[%clk 0:03:07.3]} 23. axb5 {[%clk 0:01:56.1]}
23... Qc7 {[%clk 0:03:04.5]} 24. b6 {[%clk 0:01:50.2]} 24... Qd7 {[%clk
0:03:04.8]} 25. Bg4 {[%clk 0:01:49.9]} 25... f5 {[%clk 0:02:56.3]} 26. Bf3
{[%clk 0:01:51.1]} 26... Rfe8 {[%clk 0:02:56.7]} 27. Ra1 {[%clk 0:01:43.4]}
27... Rxe1+ {[%clk 0:02:51.7]} 28. Qxe1 {[%clk 0:01:41.3]} 28... Rxa1 {[%clk
0:02:51.4]} 29. Qxa1 {[%clk 0:01:43.2]} 29... Qe7 {[%clk 0:02:52]} 30. Bh5
{[%clk 0:01:34.3]} 30... Kf7 {[%clk 0:02:44.2]} 31. Qa8 {[%clk 0:01:29.4]} 31...
Qd7 {[%clk 0:02:35]} 32. Qb8 {[%clk 0:01:29.5]} 32... d4 {[%clk 0:02:34.1]} 33.
Qc7 {[%clk 0:01:21.7]} 33... Ke7 {[%clk 0:02:32.3]} 34. Bxg6 {[%clk 0:01:16.8]}
34... hxg6 {[%clk 0:02:23.2]} 35. Qe5+ {[%clk 0:01:18]} 35... Kf7 {[%clk
0:02:19.9]} 36. Qc7 {[%clk 0:01:19]} 36... Ke6 {[%clk 0:02:17.1]} 37. f4 {[%clk
0:01:07.3]} 37... Qxc7 {[%clk 0:02:11.6]} 38. bxc7 {[%clk 0:01:09.2]} 38... Kd7
{[%clk 0:02:12.6]} 39. Kf2 {[%clk 0:01:11.1]} 39... Kxc7 {[%clk 0:02:13.7]} 40.
Ke2 {[%clk 0:01:13]} 40... b6 {[%clk 0:02:13.6]} 41. cxb6+ {[%clk 0:01:14.8]}
41... Kxb6 {[%clk 0:02:14.3]} 42. Kd3 {[%clk 0:01:16.3]} 42... c5 {[%clk
0:02:15.3]} 43. Kc4 {[%clk 0:01:17.8]} 43... Kc6 {[%clk 0:02:16.3]} 44. g3
{[%clk 0:01:19.5]} 44... Kd6 {[%clk 0:02:16.3]} 45. g4 {[%clk 0:01:21.2]} 45...
Kc6 {[%clk 0:02:15.2]} 46. Kd3 {[%clk 0:01:20]} 46... Kd5 {[%clk 0:02:15.7]} 0-1

[Event "*** Titled Tuesday Blitz"]
[Site "Chess.com"]
[Date "2019.06.04"]
[Round "2"]
[White "Niclox"]
[Black "GHANDEEVAM2003"]
[Result "1-0"]
[WhiteElo "2667"]
[BlackElo "2929"]
[TimeControl "180+2"]
[EndTime "13:21:17 PDT"]
[Termination "Niclox won by resignation"]

1. e4 {[%clk 0:03:01.9]} 1... e6 {[%clk 0:02:59.1]} 2. d4 {[%clk 0:03:02.2]}
2... d5 {[%clk 0:02:59.6]} 3. exd5 {[%clk 0:03:04.1]} 3... exd5 {[%clk
0:03:01.5]} 4. c4 {[%clk 0:03:05.9]} 4... Nf6 {[%clk 0:02:59.2]} 5. Nc3 {[%clk
0:03:07.1]} 5... Bb4 {[%clk 0:03:00.2]} 6. Nf3 {[%clk 0:03:08.9]} 6... O-O
{[%clk 0:03:00.9]} 7. Bd3 {[%clk 0:03:09.1]} 7... Re8+ {[%clk 0:03:01.1]} 8. Be3
{[%clk 0:03:09.1]} 8... dxc4 {[%clk 0:02:54]} 9. Bxc4 {[%clk 0:03:09.7]} 9...
Nc6 {[%clk 0:02:54.1]} 10. O-O {[%clk 0:03:00.3]} 10... Bg4 {[%clk 0:02:55.2]}
11. Be2 {[%clk 0:02:54]} 11... Nd5 {[%clk 0:02:50.4]} 12. Qd3 {[%clk 0:02:45.2]}
12... Be7 {[%clk 0:02:36.1]} 13. Rfe1 {[%clk 0:02:30.1]} 13... Bf6 {[%clk
0:02:29.1]} 14. Rad1 {[%clk 0:02:26]} 14... a6 {[%clk 0:02:26.9]} 15. a3 {[%clk
0:02:13.5]} 15... Qd7 {[%clk 0:02:23.7]} 16. Ne5 {[%clk 0:02:00.4]} 16... Bxe2
{[%clk 0:01:50.6]} 17. Nxd7 {[%clk 0:01:55.5]} 17... Bxd3 {[%clk 0:01:51.5]} 18.
Nxd5 {[%clk 0:01:56.5]} 18... Bxd4 {[%clk 0:01:40.3]} 19. Rxd3 {[%clk
0:01:49.5]} 19... Rad8 {[%clk 0:01:40.3]} 20. Rxd4 {[%clk 0:01:20.8]} 20... Nxd4
{[%clk 0:01:32.5]} 21. N5f6+ {[%clk 0:01:19.1]} 21... gxf6 {[%clk 0:01:25.2]}
22. Nxf6+ {[%clk 0:01:21]} 22... Kh8 {[%clk 0:01:18.2]} 23. Nxe8 {[%clk
0:01:17.4]} 23... Nc2 {[%clk 0:01:19.6]} 24. Bg5 {[%clk 0:01:14.3]} 24... Rd5
{[%clk 0:01:15.3]} 25. Bf6+ {[%clk 0:01:13.5]} 25... Kg8 {[%clk 0:01:16.7]} 26.
Bc3 {[%clk 0:01:13.9]} 26... Nxe1 {[%clk 0:01:14.3]} 27. Nf6+ {[%clk 0:01:13.8]}
1-0

[Event "*** Titled Tuesday Blitz"]
[Site "Chess.com"]
[Date "2019.06.04"]
[Round "2"]
[White "MasterKroket"]
[Black "FMAntonio"]
[Result "1-0"]
[WhiteElo "2349"]
[BlackElo "2547"]
[TimeControl "180+2"]
[EndTime "13:21:30 PDT"]
[Termination "MasterKroket won by resignation"]

1. d4 {[%clk 0:03:01.9]} 1... Nf6 {[%clk 0:03:00.2]} 2. c4 {[%clk 0:03:03.4]}
2... e6 {[%clk 0:03:01.1]} 3. Nf3 {[%clk 0:03:04.7]} 3... d5 {[%clk 0:03:01.9]}
4. Nc3 {[%clk 0:03:05.2]} 4... Be7 {[%clk 0:03:02.4]} 5. Bf4 {[%clk 0:03:05.8]}
5... O-O {[%clk 0:03:02.5]} 6. e3 {[%clk 0:03:07.1]} 6... b6 {[%clk 0:03:03.3]}
7. cxd5 {[%clk 0:03:06.5]} 7... Nxd5 {[%clk 0:03:03.8]} 8. Nxd5 {[%clk
0:03:07.5]} 8... exd5 {[%clk 0:03:05]} 9. Bd3 {[%clk 0:03:06.1]} 9... Be6 {[%clk
0:03:03.6]} 10. Qc2 {[%clk 0:03:02.6]} 10... h6 {[%clk 0:02:57.8]} 11. Qxc7
{[%clk 0:03:02.5]} 11... Bb4+ {[%clk 0:02:49.4]} 12. Ke2 {[%clk 0:03:01.6]}
12... Qxc7 {[%clk 0:02:39.7]} 13. Bxc7 {[%clk 0:03:00.6]} 13... Rc8 {[%clk
0:02:39.7]} 14. Bf4 {[%clk 0:02:51.4]} 14... Nd7 {[%clk 0:02:34.5]} 15. Rhc1
{[%clk 0:02:50]} 15... Kf8 {[%clk 0:02:34.7]} 16. a3 {[%clk 0:02:50.3]} 16...
Be7 {[%clk 0:02:35.3]} 17. Ne5 {[%clk 0:02:44.7]} 17... Nxe5 {[%clk 0:02:26.5]}
18. Bxe5 {[%clk 0:02:45.4]} 18... Rxc1 {[%clk 0:02:27.2]} 19. Rxc1 {[%clk
0:02:45.9]} 19... Rc8 {[%clk 0:02:29.1]} 20. Rxc8+ {[%clk 0:02:46.8]} 20... Bxc8
{[%clk 0:02:31]} 21. Bb5 {[%clk 0:02:47]} 21... Bb7 {[%clk 0:02:30.1]} 22. Bb8
{[%clk 0:02:42.8]} 22... a6 {[%clk 0:02:29.9]} 23. Bd3 {[%clk 0:02:44.3]} 23...
Ke8 {[%clk 0:02:27.1]} 24. Kd2 {[%clk 0:02:41.3]} 24... Kd7 {[%clk 0:02:25.6]}
25. Kc3 {[%clk 0:02:41.4]} 25... g6 {[%clk 0:02:26]} 26. Bf4 {[%clk 0:02:37.4]}
26... h5 {[%clk 0:02:13.4]} 27. f3 {[%clk 0:02:33.4]} 27... f5 {[%clk
0:02:05.5]} 28. Be5 {[%clk 0:02:32.7]} 28... b5 {[%clk 0:01:43.8]} 29. g4 {[%clk
0:02:28.6]} 29... hxg4 {[%clk 0:01:34.3]} 30. fxg4 {[%clk 0:02:28.2]} 30... Ke6
{[%clk 0:01:31.4]} 31. gxf5+ {[%clk 0:02:28.9]} 31... gxf5 {[%clk 0:01:32.9]}
32. Kd2 {[%clk 0:02:25.4]} 32... b4 {[%clk 0:01:30.8]} 33. axb4 {[%clk
0:02:25.5]} 33... Bxb4+ {[%clk 0:01:31.4]} 34. Ke2 {[%clk 0:02:26.8]} 34... a5
{[%clk 0:01:30.9]} 35. Kf3 {[%clk 0:02:28]} 35... Bd2 {[%clk 0:01:13.5]} 36. Kf4
{[%clk 0:02:26.9]} 36... a4 {[%clk 0:01:12.4]} 37. Bb5 {[%clk 0:02:27.8]} 37...
Bc1 {[%clk 0:01:04.6]} 38. Bxa4 {[%clk 0:02:28.8]} 38... Bxb2 {[%clk 0:01:05.2]}
39. Bc2 {[%clk 0:02:30]} 39... Bc1 {[%clk 0:01:03]} 40. Bxf5+ {[%clk 0:02:30.6]}
40... Kf7 {[%clk 0:01:03.8]} 41. h4 {[%clk 0:02:31.2]} 41... Ba6 {[%clk
0:01:03]} 42. h5 {[%clk 0:02:31.6]} 42... Ba3 {[%clk 0:00:55.5]} 43. h6 {[%clk
0:02:32.3]} 43... Bf8 {[%clk 0:00:56.5]} 44. h7 {[%clk 0:02:33.4]} 44... Bh6+
{[%clk 0:00:56]} 45. Kf3 {[%clk 0:02:30.2]} 45... Bg7 {[%clk 0:00:57.7]} 46.
h8=Q {[%clk 0:02:30.1]} 46... Bxh8 {[%clk 0:00:58.4]} 47. Bxh8 {[%clk 0:02:32]}
1-0

[Event "*** Titled Tuesday Blitz"]
[Site "Chess.com"]
[Date "2019.06.04"]
[Round "2"]
[White "babadroga92"]
[Black "VeraNebolsina"]
[Result "0-1"]
[WhiteElo "2595"]
[BlackElo "2358"]
[TimeControl "180+2"]
[EndTime "13:21:45 PDT"]
[Termination "VeraNebolsina won by resignation"]

1. e4 {[%clk 0:03:01.9]} 1... g6 {[%clk 0:03:00.1]} 2. d4 {[%clk 0:03:02.4]}
2... Bg7 {[%clk 0:03:01]} 3. Nc3 {[%clk 0:03:04.1]} 3... d6 {[%clk 0:03:01.7]}
4. f4 {[%clk 0:03:04.8]} 4... Nf6 {[%clk 0:03:01.8]} 5. Nf3 {[%clk 0:03:00.8]}
5... c5 {[%clk 0:03:02]} 6. d5 {[%clk 0:02:58.7]} 6... O-O {[%clk 0:02:58]} 7.
Be2 {[%clk 0:02:54.6]} 7... a6 {[%clk 0:02:45.2]} 8. a4 {[%clk 0:02:52.4]} 8...
e6 {[%clk 0:02:45.9]} 9. dxe6 {[%clk 0:02:32.7]} 9... Bxe6 {[%clk 0:02:45.7]}
10. O-O {[%clk 0:02:31.9]} 10... Nc6 {[%clk 0:02:46.3]} 11. h3 {[%clk
0:02:23.5]} 11... h6 {[%clk 0:02:16.2]} 12. Be3 {[%clk 0:02:08.4]} 12... Re8
{[%clk 0:01:49.8]} 13. Qd2 {[%clk 0:01:22]} 13... d5 {[%clk 0:01:50.4]} 14. exd5
{[%clk 0:00:57.3]} 14... Nxd5 {[%clk 0:01:49.7]} 15. Nxd5 {[%clk 0:00:57.6]}
15... Qxd5 {[%clk 0:01:48.7]} 16. c3 {[%clk 0:00:30]} 16... Qxd2 {[%clk
0:01:46.4]} 17. Nxd2 {[%clk 0:00:26.6]} 17... Bxh3 {[%clk 0:01:35.8]} 18. Kf2
{[%clk 0:00:26.8]} 18... Bxg2 {[%clk 0:01:35.7]} 19. Rg1 {[%clk 0:00:25.9]}
19... Bd5 {[%clk 0:01:33]} 20. Bxc5 {[%clk 0:00:25.5]} 20... Bf6 {[%clk
0:01:30.1]} 21. Nf3 {[%clk 0:00:24.8]} 21... Re4 {[%clk 0:01:24.8]} 22. f5
{[%clk 0:00:16]} 22... Rae8 {[%clk 0:01:22.4]} 23. Bd3 {[%clk 0:00:14.8]} 23...
Rf4 {[%clk 0:01:21.5]} 24. Rg3 {[%clk 0:00:14.2]} 24... Bh4 {[%clk 0:01:21.3]}
25. Bd6 {[%clk 0:00:10.3]} 25... Rxf3+ {[%clk 0:01:21.3]} 0-1

[Event "*** Titled Tuesday Blitz"]
[Site "Chess.com"]
[Date "2019.06.04"]
[Round "2"]
[White "2nd_life"]
[Black "hellokostya"]
[Result "0-1"]
[WhiteElo "2552"]
[BlackElo "2522"]
[TimeControl "180+2"]
[EndTime "13:21:49 PDT"]
[Termination "hellokostya won by resignation"]

1. e4 {[%clk 0:03:01.9]} 1... e5 {[%clk 0:03:00.5]} 2. f4 {[%clk 0:03:02.5]}
2... exf4 {[%clk 0:03:00.9]} 3. Nf3 {[%clk 0:03:03.2]} 3... g5 {[%clk
0:03:01.9]} 4. h4 {[%clk 0:03:03.7]} 4... g4 {[%clk 0:03:01.6]} 5. Ne5 {[%clk
0:03:04.5]} 5... Nf6 {[%clk 0:02:56.6]} 6. Nxg4 {[%clk 0:02:53.2]} 6... Nxe4
{[%clk 0:02:56.3]} 7. d3 {[%clk 0:02:50.5]} 7... Ng3 {[%clk 0:02:48.4]} 8. Bxf4
{[%clk 0:02:49.9]} 8... Bd6 {[%clk 0:02:27.8]} 9. Bxd6 {[%clk 0:02:25.9]} 9...
cxd6 {[%clk 0:02:28.5]} 10. Rh3 {[%clk 0:02:24.4]} 10... Nf5 {[%clk 0:02:25.6]}
11. Qf3 {[%clk 0:01:55.7]} 11... Qa5+ {[%clk 0:02:02]} 12. b4 {[%clk 0:01:35.9]}
12... Qxb4+ {[%clk 0:01:56.1]} 13. c3 {[%clk 0:01:37]} 13... Qa5 {[%clk
0:01:44.8]} 14. Nf6+ {[%clk 0:01:25.6]} 14... Kd8 {[%clk 0:01:45.5]} 15. Nd5
{[%clk 0:01:19.9]} 15... Re8+ {[%clk 0:01:43.4]} 16. Be2 {[%clk 0:01:13.2]}
16... Re5 {[%clk 0:01:31.9]} 17. Nb4 {[%clk 0:00:29.8]} 17... Nc6 {[%clk
0:01:27.2]} 18. Nxc6+ {[%clk 0:00:19.6]} 18... dxc6 {[%clk 0:01:18.3]} 19. Qf4
{[%clk 0:00:17.9]} 19... Kc7 {[%clk 0:01:12.3]} 20. d4 {[%clk 0:00:15.2]} 20...
Nxd4 {[%clk 0:01:04.5]} 21. Qxd4 {[%clk 0:00:07.9]} 21... Bxh3 {[%clk
0:01:05.4]} 0-1

[Event "*** Titled Tuesday Blitz"]
[Site "Chess.com"]
[Date "2019.06.04"]
[Round "2"]
[White "Yashasd1995"]
[Black "oogee"]
[Result "1-0"]
[WhiteElo "2506"]
[BlackElo "2329"]
[TimeControl "180+2"]
[EndTime "13:21:50 PDT"]
[Termination "Yashasd1995 won by resignation"]

1. b3 {[%clk 0:03:01.4]} 1... e5 {[%clk 0:03:00]} 2. Bb2 {[%clk 0:03:02.5]} 2...
Nc6 {[%clk 0:03:01]} 3. c4 {[%clk 0:03:03.2]} 3... g6 {[%clk 0:03:02]} 4. Nc3
{[%clk 0:03:03.3]} 4... Bg7 {[%clk 0:03:03.1]} 5. g3 {[%clk 0:03:05]} 5... f5
{[%clk 0:03:04.1]} 6. Bg2 {[%clk 0:03:06.6]} 6... Nf6 {[%clk 0:03:05.6]} 7. d3
{[%clk 0:03:07.9]} 7... O-O {[%clk 0:03:06.6]} 8. Nf3 {[%clk 0:03:09.5]} 8... d6
{[%clk 0:03:06.2]} 9. O-O {[%clk 0:03:08.2]} 9... h6 {[%clk 0:03:06.7]} 10. Nd2
{[%clk 0:03:06.2]} 10... f4 {[%clk 0:03:03.5]} 11. Nd5 {[%clk 0:03:05.5]} 11...
g5 {[%clk 0:02:54.4]} 12. a3 {[%clk 0:02:57.6]} 12... Ne7 {[%clk 0:02:35.6]} 13.
b4 {[%clk 0:02:53]} 13... c6 {[%clk 0:02:29.3]} 14. Nxf6+ {[%clk 0:02:53.6]}
14... Rxf6 {[%clk 0:02:22]} 15. c5 {[%clk 0:02:50.3]} 15... Ng6 {[%clk
0:01:25.2]} 16. Ne4 {[%clk 0:02:48.2]} 16... dxc5 {[%clk 0:01:19.9]} 17. Nxf6+
{[%clk 0:02:48.1]} 17... Qxf6 {[%clk 0:01:16.4]} 18. bxc5 {[%clk 0:02:49.5]}
18... Be6 {[%clk 0:01:14.9]} 19. Bc3 {[%clk 0:02:00.5]} 19... Qe7 {[%clk
0:01:06.7]} 20. Rb1 {[%clk 0:01:38.8]} 20... g4 {[%clk 0:00:39.7]} 21. Be4
{[%clk 0:01:14.2]} 21... Nh8 {[%clk 0:00:39.5]} 22. gxf4 {[%clk 0:01:07.2]}
22... exf4 {[%clk 0:00:40.2]} 23. Bxg7 {[%clk 0:01:07.6]} 23... Qxg7 {[%clk
0:00:41.2]} 24. Qd2 {[%clk 0:01:07.8]} 24... Rf8 {[%clk 0:00:40.6]} 25. Qb2
{[%clk 0:01:07.4]} 25... Qe5 {[%clk 0:00:26.5]} 26. Qxe5 {[%clk 0:01:07.3]} 1-0